Workbook

Sheet Calculations
A5: Pine Rotating Cylinder Calculation Worksheet
A6: Pine Research Instrumentation makes this worksheet available for users of our 15-mm RCE electrode products. For general efficiency and applicability across a wide range of research, we make some assumptions to generate the worksheet values. These assumptions will be clearly noted. Users should refer to our Technical Note (LMENCN200601) for "Study of Mass Transport Limited Corrosion Using Pine Rotating Cylinder Electrodes." This technical note reviews the theory and practice in these types of calculations. Users are cautioned to verify all calculations for their specific system outside of this calculation worksheet. Additionally, the user is reminded the maximum rotation rate for the 12-mm Pine RCE is 2000 RPM and the maximum rotation rate for the Pine 15-mm RCE is 4000 RPM. For your safety, do not rotate faster than rated.
A8: Values that appearlike this are automatically filled based on your input, or are constants. Do not edit them.
A9: Cells that appear like this require user input.
A11: VARIABLES
A13: Term | C13: Value | D13: Unit | E13: Symbol | F13: Notes
A14: Concentration | C14: 1e-06 | D14: mol / cm3 | E14: C | F14: bulk concentration, assume 1 x 10-6 for pure water
A15: Density | C15: 0.99713 | D15: g / cm3 | E15: ρ | F15: of the solution, 0.99713 for pure water at STP
A16: Absolute Viscosity | C16: 0.008935645302 | D16: g / cm s | E16: μ | F16: Also called dynamic viscosity, assume 0.00891 for pure water at STP
A17: Kinemtic Viscosity | C17: =IF(OR($C$15="",$C$15="***"),"***",Absolute_Viscosity/Density) -> 0.008961364418 | D17: cm2 / s | E17: νk | F17: Absolute viscosity divided by density, assume 0.00894 for pure water at STP
A18: Diffusion Coefficient | C18: 1e-05 | D18: cm2 / s | E18: D | F18: For the bulk species, assume 1 x 10-5 for pure water at STP
A19: Number of electrons | C19: 1 | D19: - | E19: z | F19: Number of electrons transferred per reaction, if in the bulk
A21: SELECT RCE SIZE | N21: TABLE 1. HYDRODYNAMIC COMPUTATIONS FOR A TYPICAL* ROTATING CYLINDER ELECTRODE IN WATER
N22: *These quantities assume a typical Pine RCE tip (either 12-mm or 15-mm diameter) rotated in water at 25 degrees C. For pure water at 25 degrees C, the density is 0.997 g / cm3 and the absolute viscosity is 0.00891 g / cm s. Computations assume a diffusion coefficient, D = 1.0 x 10-5 cm2 / s and a bulk concentration, C = 1.0 x 10-6 mol / cm3
A23: Term | C23: Value | D23: Unit | E23: Symbol
A24: RCE Insert Diameter | C24: =IF($I$25=12,1.2,IF($I$25=15,1.5,"***")) -> 1.5 | D24: cm | E24: drce | F24: Select 12 or 15 mm RCE from the dropdown menu
A25: RCE Insert Height | C25: =IF($I$25=12,0.795,IF($I$25=15,0.64,"***")) -> 0.64 | D25: cm | E25: hrce | I25: 15 | J25: mm
A26: RCE Insert Radius | C26: =IF($I$25=12,0.6,IF($I$25=15,0.75,"***")) -> 0.75 | D26: cm | E26: rrce | N26: Rotation | O26: Rotation | P26: RCE | Q26: Reynolds | R26: Wall Shear | S26: Wall Shear | T26: Mass Transfer | U26: Limiting Current | V26: Limiting
A27: RCE Insert Area | C27: =IF($I$25=12,2.9971,IF($I$25=15,3.0159,"***")) -> 3.0159 | D27: cm2 | E27: Arce | N27: Rate | O27: Rate | P27: Surface Velocity | Q27: Number | R27: Stress | S27: Stress (Pa) | T27: Coefficient | U27: Current | V27: Density
N28: (RPM) | O28: (radians / s) | P28: (cm / s) | Q28: (unitless) | R28: (g / cm s2) | S28: (kg / m s2) | T28: (cm / s) | U28: (A) | V28: (A / cm2)
A29: PHYSICAL CONSTANTS | N29: 1 | O29: =2*PI()*N29/60 -> 0.1047197551 | P29: =IF($C$26="***","***",O29*$C$26) -> 0.07853981634 | Q29: =IF(OR($C$24=("***"),Kinematic_Viscosity=""),"***",(P29*$C$24)/Kinematic_Viscosity) -> 13.14640483 | R29: =IF(OR(Density="",Q29="***"),"***",0.0791*Density*(Q29^-0.3)*($C$26^2)*(O29^2)) -> 0.0002246290542 | S29: =IF(OR(Density="",Q29="***"),"***",0.0791*Density*(Q29^-0.3)*(O29^2)*($C$26^2)/10) -> 2.246290542e-05 | T29: =IF(OR($P$29="***",Diffusion_Coefficient="",Kinematic_Viscosity=""),"***",0.0791*(P29^0.7)*($C$24^(-0.3))*(Kinematic_Viscosity^(-0.344))*(Diffusion_Coefficient^(0.644))) -> 3.59994047e-05 | U29: =IF($T$29="***","***",T29*$C$38*$C$27*Number_Electrons*Concentration) -> 1.047543479e-05 | V29: =IF(U29="***","***",U29/$C$26^2) -> 1.862299518e-05
N30: 2 | O30: =2*PI()*N30/60 -> 0.2094395102 | P30: =IF($C$26="***","***",O30*$C$26) -> 0.1570796327 | Q30: 26.29280967 | R30: 0.0007298219501 | S30: =IF(OR(Density="",Q30="***"),"***",0.0791*Density*(Q30^-0.3)*(O30^2)*($C$26^2)/10) -> 7.298219501e-05 | T30: 5.848120546e-05 | U30: 1.701739402e-05 | V30: =IF(U30="***","***",U30/$C$26^2) -> 3.025314492e-05
A31: Term | C31: Value | D31: Unit | E31: Symbol | F31: Notes | N31: 2.5 | O31: 0.2617993878 | P31: 0.1963495408 | Q31: 32.86601209 | R31: 0.001066507572 | S31: =IF(OR(Density="",Q31="***"),"***",0.0791*Density*(Q31^-0.3)*(O31^2)*($C$26^2)/10) -> 0.0001066507572 | T31: 6.836807079e-05 | U31: 1.989436418e-05 | V31: 3.536775853e-05
A32: Critical Reynolds Number | C32: 200 | D32: - | E32: REcrit | F32: The minimum Reynolds number to ensure turbulent flow | N32: 5 | O32: 0.5235987756 | P32: 0.3926990817 | Q32: 65.73202417 | R32: 0.003465093324 | S32: =IF(OR(Density="",Q32="***"),"***",0.0791*Density*(Q32^-0.3)*(O32^2)*($C$26^2)/10) -> 0.0003465093324 | T32: 0.0001110642587 | U32: 3.231848995e-05 | V32: 5.745509325e-05
A33: Critical Rotation Rate | C33: =IF(C24="***","***",(C32*Kinematic_Viscosity)/(C24*C26)) -> 1.593131452 | D33: rad / s | E33: ωcrit | F33: The critical rotation rate to achieve RE = 200 with the given RCE size | N33: 10 | O33: 1.047197551 | P33: 0.7853981634 | Q33: 131.4640483 | R33: 0.01125812142 | S33: =IF(OR(Density="",Q33="***"),"***",0.0791*Density*(Q33^-0.3)*(O33^2)*($C$26^2)/10) -> 0.001125812142 | T33: 0.0001804244205 | U33: 5.250154182e-05 | V33: 9.333607434e-05
A34: Minimum Rotation Rate | C34: =IF(C24="***","***",(C33*30)/PI()) -> 15.21328474 | D34: RPM | E34: υmax,RPM | F34: Minimum rotation rate with the AFMSRCE rotator | N34: 20 | O34: 2.094395102 | P34: 1.570796327 | Q34: 262.9280967 | R34: 0.03657774442 | S34: =IF(OR(Density="",Q34="***"),"***",0.0791*Density*(Q34^-0.3)*(O34^2)*($C$26^2)/10) -> 0.003657774442 | T34: 0.0002931003358 | U34: 8.528900631e-05 | V34: 0.0001516249001
A35: Maximum Rotation Rate | C35: =IF(I25="Select","***",IF(I25=12,2000,4000)) -> 4000 | D35: RPM | E35: υmin,RPM | F35: Maximum safety rotation rate with the AFMSRCE rotator | N35: 25 | O35: 2.617993878 | P35: 1.963495408 | Q35: 328.6601209 | R35: 0.05345199796 | S35: =IF(OR(Density="",Q35="***"),"***",0.0791*Density*(Q35^-0.3)*(O35^2)*($C$26^2)/10) -> 0.005345199796 | T35: 0.0003426520427 | U35: 9.970801346e-05 | V35: 0.0001772586906
A36: Silverman Constant | C36: 0.1185 | D36: - | E36: Ks | F36: Constant used in calculating equivalent rotation rate | N36: 50 | O36: 5.235987756 | P36: 3.926990817 | Q36: 657.3202417 | R36: 0.1736660537 | S36: =IF(OR(Density="",Q36="***"),"***",0.0791*Density*(Q36^-0.3)*(O36^2)*($C$26^2)/10) -> 0.01736660537 | T36: 0.0005566398856 | U36: 0.0001619761457 | V36: 0.0002879575924
A37: Schmidt Value | C37: =IF(OR(Diffusion_Coefficient="",Kinematic_Viscosity="***"),"***",(Kinematic_Viscosity/(Diffusion_Coefficient))) -> 896.1364418 | D37: - | E37: Sc | F37: Kinematic viscosity divided by product of diffusion constant and density | N37: 100 | O37: 10.47197551 | P37: 7.853981634 | Q37: 1314.640483 | R37: 0.5642426733 | S37: =IF(OR(Density="",Q37="***"),"***",0.0791*Density*(Q37^-0.3)*(O37^2)*($C$26^2)/10) -> 0.05642426733 | T37: 0.000904264162 | U37: 0.000263131025 | V37: 0.000467788489
A38: Faraday's Constant | C38: 96485 | D38: C / mol | E38: F | F38: Factor to convert between current and mass, C = Coulomb | N38: 200 | O38: 20.94395102 | P38: 15.70796327 | Q38: 2629.280967 | R38: 1.833229854 | S38: =IF(OR(Density="",Q38="***"),"***",0.0791*Density*(Q38^-0.3)*(O38^2)*($C$26^2)/10) -> 0.1833229854 | T38: 0.001468981465 | U38: 0.0004274576113 | V38: 0.0007599246423
A39: Temperature | C39: 25 | N39: 250 | O39: 26.17993878 | P39: 19.63495408 | Q39: 3286.601209 | R39: 2.678945899 | S39: =IF(OR(Density="",Q39="***"),"***",0.0791*Density*(Q39^-0.3)*(O39^2)*($C$26^2)/10) -> 0.2678945899 | T39: 0.001717328294 | U39: 0.0004997238344 | V39: 0.0008883979277
N40: 500 | O40: 52.35987756 | P40: 39.26990817 | Q40: 6573.202417 | R40: 8.703920905 | S40: =IF(OR(Density="",Q40="***"),"***",0.0791*Density*(Q40^-0.3)*(O40^2)*($C$26^2)/10) -> 0.8703920905 | T40: 0.002789808044 | U40: 0.0008118037639 | V40: 0.001443206691
A41: MATHEMATICAL CONSTANTS | N41: 1000 | O41: 104.7197551 | P41: 78.53981634 | Q41: 13146.40483 | R41: 28.27912245 | S41: =IF(OR(Density="",Q41="***"),"***",0.0791*Density*(Q41^-0.3)*(O41^2)*($C$26^2)/10) -> 2.827912245 | T41: 0.004532056538 | U41: 0.001318779105 | V41: 0.002344496187
N42: 2000 | O42: =2*PI()*N42/60 -> 209.4395102 | P42: 157.0796327 | Q42: 26292.80967 | R42: 91.87913991 | S42: =IF(OR(Density="",Q42="***"),"***",0.0791*Density*(Q42^-0.3)*(O42^2)*($C$26^2)/10) -> 9.187913991 | T42: 0.007362347567 | U42: 0.002142362977 | V42: 0.003808645292
A43: Term | C43: Value | D43: Unit | E43: Symbol | F43: Notes | N43: 3000 | O43: 314.1592654 | P43: 235.619449 | Q43: 39439.2145 | R43: 183.0509813 | S43: =IF(OR(Density="",Q43="***"),"***",0.0791*Density*(Q43^-0.3)*(O43^2)*($C$26^2)/10) -> 18.30509813 | T43: 0.009778679167 | U43: 0.002845489162 | V43: 0.0050586474
A44: Cylinder Exponent | C44: =3/7 -> 0.4285714286 | D44: - | E44: e_cyl | F44: These exponential fits are based on theory (see Technical Note, Equation 8). They are presented explicitly here to ease mathematical manipulation for the user. | N44: 4000 | O44: 418.8790205 | P44: 314.1592654 | Q44: 52585.61934 | R44: 298.5162063 | S44: =IF(OR(Density="",Q44="***"),"***",0.0791*Density*(Q44^-0.3)*(O44^2)*($C$26^2)/10) -> 29.85162063 | T44: 0.01196016891 | U44: 0.003480278924 | V44: 0.006187162531
A45: Pipe Exponent | C45: =5/28 -> 0.1785714286 | D45: - | E45: e_pipe | N45: 5000 | O45: 523.5987756 | P45: 392.6990817 | Q45: 65732.02417 | R45: 436.229404 | S45: =IF(OR(Density="",Q45="***"),"***",0.0791*Density*(Q45^-0.3)*(O45^2)*($C$26^2)/10) -> 43.6229404 | T45: 0.01398216176 | U45: 0.004068656827 | V45: 0.007233167692
A46: Viscosity Exponent | C46: -0.25 | D46: - | E46: e_visc | N46: 7500 | O46: 785.3981634 | P46: 589.0486225 | Q46: 98598.03626 | R46: 869.1006529 | S46: =IF(OR(Density="",Q46="***"),"***",0.0791*Density*(Q46^-0.3)*(O46^2)*($C$26^2)/10) -> 86.91006529 | T46: 0.01857112458 | U46: 0.005403995042 | V46: 0.009607102298
A47: Schmidt Exponent | C47: -0.0857 | D47: - | E47: e_sch | N47: 10000 | O47: 1047.197551 | P47: 785.3981634 | Q47: 131464.0483 | R47: 1417.313515 | S47: =IF(OR(Density="",Q47="***"),"***",0.0791*Density*(Q47^-0.3)*(O47^2)*($C$26^2)/10) -> 141.7313515 | T47: 0.02271408879 | U47: 0.006609552515 | V47: 0.01175031558
A48: Velocity Exponent | C48: =5/4 -> 1.25 | D48: - | E48: e_vel | N48: 20000 | O48: 2094.395102 | P48: 1570.796327 | Q48: 262928.0967 | R48: 4604.865196 | S48: =IF(OR(Density="",Q48="***"),"***",0.0791*Density*(Q48^-0.3)*(O48^2)*($C$26^2)/10) -> 460.4865196 | T48: 0.0368991461 | U48: 0.01073724974 | V48: 0.01908844398
K50: PIPE VELOCITIES | O50: TABLE 2. ROTATION RATE CORRELATION FOR WATER BETWEEN A TYPICAL* RCE AND A SMOOTH, STRAIGHT PIPE FLOW (Table Values in RPM)
L51: Schedule 40 Type | O51: "1 inch" | P51: "2 inch" | Q51: "3 inch" | R51: "4 inch" | S51: "5 inch" | T51: "6 inch" | U51: "8 inch" | V51: "10 inch" | W51: "12 inch" | X51: "14 inch" | Y51: "16 inch" | Z51: "18 inch" | AA51: "20 inch" | AB51: "24 inch"
L52: Pipe ID (cm) | O52: 2.664 | P52: 5.25 | Q52: 7.792 | R52: 10.23 | S52: 12.82 | T52: 15.41 | U52: 20.27 | V52: 25.45 | W52: 30.32 | X52: 33.3502 | Y52: 38.1 | Z52: 42.8752 | AA52: 47.7774 | AB52: 57.4802
L53: PIPE VELOCITIES | O53: *These quantities assume a typical Pine RCE tip (either 12-mm or 15-mm diameter) rotated in water at 25 degrees C. For pure water at 25 degrees C, the density is 0.997 g / cm3 and the absolute viscosity is 0.00891 g / cm s. Computations assume a diffusion coefficient, D = 1.0 x 10-5 cm2 / s and a bulk concentration, C = 1.0 x 10-6 mol / cm3
L54: (ft / s) | M54: (cm / s) | N54: (mi / hr)
L55: 0.1 | M55: =L55*12*2.54 -> 3.048 | N55: =L55*60*60/5280 -> 0.06818181818 | O55: =IF($C$37="***","***",(($C$36*($C$24^$C$44)*($O$52^((-1)*$C$45))*(Kinematic_Viscosity^$C$46)*($C$37^$C$47)*(M55^$C$48))*(60/(2*PI()*$C$26)))) -> 11.01576349 | P55: =IF($C$37="***","***",(($C$36*($C$24^$C$44)*($P$52^((-1)*$C$45))*(Kinematic_Viscosity^$C$46)*($C$37^$C$47)*($M55^$C$48))*(60/(2*PI()*$C$26)))) -> 9.758947483 | Q55: =IF($C$37="***","***",(($C$36*($C$24^$C$44)*(Q$52^((-1)*$C$45))*(Kinematic_Viscosity^$C$46)*($C$37^$C$47)*($M55^$C$48))*(60/(2*PI()*$C$26)))) -> 9.094521014 | R55: 8.662992171 | S55: 8.320811989 | T55: 8.051841967 | U55: 7.667188059 | V55: 7.361853661 | W55: 7.135236245 | X55: 7.014892042 | Y55: 6.850067091 | Z55: 6.707141535 | AA55: 6.578724408 | AB55: 6.365069723
L56: 0.2 | M56: =L56*12*2.54 -> 6.096 | N56: =L56*60*60/5280 -> 0.1363636364 | O56: 26.20004863 | P56: 23.21081956 | Q56: 21.6305382 | R56: 20.60418385 | S56: 19.79033764 | T56: 19.15061551 | U56: 18.23574918 | V56: 17.50953751 | W56: 16.97054742 | X56: 16.68431906 | Y56: 16.29229705 | Z56: 15.95236087 | AA56: 15.64693175 | AB56: 15.13877241
L57: 0.3 | M57: 9.144 | N57: 0.2045454545 | O57: 43.49268017 | P57: 38.53049153 | Q57: 35.9071883 | R57: 34.20341661 | S57: 32.85241328 | T57: 31.79045991 | U57: 30.27176087 | V57: 29.06623287 | W57: 28.171497 | X57: 27.69635136 | Y57: 27.04558586 | Z57: 26.48128403 | AA57: 25.9742647 | AB57: 25.13070856
L58: 0.4 | M58: 12.192 | N58: 0.2727272727 | O58: 62.31456849 | P58: 55.20494354 | Q58: 51.44637985 | R58: 49.00528407 | S58: 47.06962066 | T58: 45.54809645 | U58: 43.37216535 | V58: 41.64493317 | W58: 40.36299147 | X58: 39.68222186 | Y58: 38.74983114 | Z58: 37.94132209 | AA58: 37.21488513 | AB58: 36.00627171
L59: 0.5 | M59: 15.24 | N59: 0.3409090909 | O59: 82.36204251 | P59: 72.96515112 | Q59: 67.99740457 | R59: 64.77097392 | S59: 62.21258033 | T59: 60.20156036 | U59: 57.3256016 | V59: 55.0426945 | W59: 53.34833411 | X59: 52.44855133 | Y59: 51.21619738 | Z59: 50.1475796 | AA59: 49.18743763 | AB59: 47.58999627
I60: GREEN CELLS Greater than MIN RPM AND Lesser than MAX RPM | L60: 0.6 | M60: 18.288 | N60: 0.4090909091 | O60: 103.4436094 | P60: 91.64146934 | Q60: 85.40216762 | R60: 81.34989278 | S60: 78.13664723 | T60: 75.61088222 | U60: 71.99878682 | V60: 69.13154187 | W60: 67.00348934 | X60: 65.8733962 | Y60: 64.32560626 | Z60: 62.98346276 | AA60: 61.77756077 | AB60: 59.77123485
L61: 0.7 | M61: 21.336 | N61: 0.4772727273 | O61: 125.4258789 | P61: 111.1157267 | Q61: 103.5505431 | R61: 98.63714013 | S61: 94.74106429 | T61: 91.67856195 | U61: 87.29887873 | V61: 83.82233031 | W61: 81.24205627 | X61: 79.87181285 | Y61: 77.99511004 | Z61: 76.36775452 | AA61: 74.9055925 | AB61: 72.47291258
L62: 0.8 | M62: 24.384 | N62: 0.5454545455 | O62: 148.2098564 | P62: 131.3002233 | Q62: 122.3608019 | R62: 116.554865 | S62: 111.9510556 | T62: 108.3322407 | U62: 103.1569753 | V62: 99.04890165 | W62: 95.99991329 | X62: 94.38076115 | Y62: 92.16314978 | Z62: 90.24018037 | AA62: 88.51241235 | AB62: 85.63782901
L63: 0.9 | M63: 27.432 | N63: 0.6136363636 | O63: 171.7187584 | P63: 152.1269358 | Q63: 141.7695522 | R63: 135.0426833 | S63: 129.7086221 | T63: 125.5157944 | U63: 119.5196334 | V63: 114.7599412 | W63: 111.2273253 | X63: 109.3513448 | Y63: 106.7819781 | Z63: 104.5539892 | AA63: 102.5521643 | AB63: 99.22161739
L64: 1 | M64: 30.48 | N64: 0.6818181818 | O64: 195.8910539 | P64: 173.5413537 | Q64: 161.7259946 | R64: 154.0522061 | S64: 147.9672864 | T64: 143.1842478 | U64: 136.3440266 | V64: 130.9143279 | W64: 126.884437 | X64: 124.7443808 | Y64: 121.8133327 | Z64: 119.2717169 | AA64: 116.9881016 | AB64: 113.1887243
L65: 2 | M65: 60.96 | N65: 1.363636364 | O65: 465.9100702 | P65: 412.7532252 | Q65: =IF($C$37="***","***",(($C$36*($C$24^$C$44)*(Q$52^((-1)*$C$45))*(Kinematic_Viscosity^$C$46)*($C$37^$C$47)*($M65^$C$48))*(60/(2*PI()*$C$26)))) -> 384.651407 | R65: 366.3999591 | S65: 351.9274994 | T65: 340.5514525 | U65: 324.282573 | V65: 311.3685003 | W65: 301.7837505 | X65: 296.6938105 | Y65: 289.7225638 | Z65: 283.6775487 | AA65: 278.2461656 | AB65: 269.2096726
I66: RED CELLS Lesser than MIN RPM OR Greater than MAX RPM | L66: 3 | M66: 91.44 | N66: 2.045454545 | O66: 773.4213763 | P66: 685.1797974 | Q66: 638.5301363 | R66: 608.2323151 | S66: 584.207701 | T66: 565.3232029 | U66: 538.3164906 | V66: 516.8788344 | W66: 500.9679306 | X66: 492.5185136 | Y66: 480.9460846 | Z66: 470.9112213 | AA66: 461.895001 | AB66: 446.8942159
L67: 4 | M67: 121.92 | N67: 2.727272727 | O67: 1108.127141 | P67: 981.6981443 | Q67: 914.86038 | R67: 871.4508765 | S67: 837.0293726 | T67: 809.9724208 | U67: 771.2782861 | V67: 740.5632718 | W67: 717.7667667 | X67: 705.6607808 | Y67: 689.0802685 | Z67: 674.7027187 | AA67: 661.7846397 | AB67: 640.2921162
L68: 5 | M68: 152.4 | N68: 3.409090909 | O68: 1464.627244 | P68: 1297.524259 | Q68: 1209.183845 | R68: 1151.808893 | S68: 1106.313507 | T68: 1070.551952 | U68: 1019.40937 | V68: 978.812903 | W68: 948.6824412 | X68: 932.6817892 | Y68: 910.7670927 | Z68: 891.7640826 | AA68: 874.6900757 | AB68: 846.2831049
L69: 6 | M69: 182.88 | N69: 4.090909091 | O69: 1839.516407 | P69: 1629.64138 | Q69: 1518.689162 | R69: 1446.628393 | S69: 1389.487909 | T69: 1344.57275 | U69: 1280.339601 | V69: 1229.351975 | W69: 1191.509255 | X69: 1171.413041 | Y69: 1143.889012 | Z69: 1120.02195 | AA69: 1098.577643 | AB69: 1062.899562
L70: 7 | M70: 213.36 | N70: 4.772727273 | O70: 2230.422579 | P70: 1975.948089 | Q70: 1841.417986 | R70: 1754.043954 | S70: 1684.760839 | T70: 1630.300991 | U70: 1552.417986 | V70: 1490.595241 | W70: 1444.710759 | X70: 1420.344002 | Y70: 1386.970983 | Z70: 1358.032054 | AA70: 1332.030728 | AB70: 1288.770882
L71: 8 | M71: 243.84 | N71: 5.454545455 | O71: 2635.58536 | P71: 2334.884836 | Q71: 2175.916946 | R71: 2072.671165 | S71: 1990.802571 | T71: 1926.449932 | U71: 1834.419251 | V71: 1761.366224 | W71: 1707.146692 | X71: 1678.353643 | Y71: 1638.918316 | Z71: 1604.722547 | AA71: 1573.998004 | AB71: 1522.879881
L72: 9 | M72: 274.32 | N72: 6.136363636 | O72: 3053.639323 | P72: 2705.241977 | Q72: 2521.058757 | R72: 2401.436231 | S72: 2306.58172 | T72: 2232.021529 | U72: 2125.393032 | V72: 2040.752406 | W72: 1977.932624 | X72: 1944.57245 | Y72: 1898.881931 | Z72: 1859.262062 | AA72: 1823.664023 | AB72: 1764.437592
L73: 10 | M73: 304.8 | N73: 6.818181818 | O73: 3483.490278 | P73: 3086.050161 | Q73: 2875.940063 | R73: 2739.478661 | S73: 2631.271787 | T73: 2546.215998 | U73: 2424.577751 | V73: 2328.022537 | W73: 2256.359818 | X73: 2218.303639 | Y73: 2166.181413 | Z73: 2120.984384 | AA73: 2080.375323 | AB73: 2012.811779
L74: 11 | M74: 335.28 | N74: 7.5 | O74: 3924.239088 | P74: 3476.512837 | Q74: 3239.818547 | R74: 3086.091358 | S74: 2964.193602 | T74: 2868.376124 | U74: 2731.347592 | V74: 2622.575724 | W74: 2541.845875 | X74: 2498.974636 | Y74: 2440.257642 | Z74: 2389.342056 | AA74: 2343.594931 | AB74: 2267.482906
L75: 12 | M75: 365.76 | N75: 8.181818182 | O75: 4375.131999 | P75: 3875.962249 | Q75: =IF($C$37="***","***",(($C$36*($C$24^$C$44)*(Q$52^((-1)*$C$45))*(Kinematic_Viscosity^$C$46)*($C$37^$C$47)*($M75^$C$48))*(60/(2*PI()*$C$26)))) -> 3612.071915 | R75: 3440.681556 | S75: 3304.777816 | T75: 3197.950963 | U75: 3045.177927 | V75: 2923.908231 | W75: 2833.902567 | X75: 2786.105447 | Y75: 2720.641903 | Z75: 2663.876144 | AA75: 2612.872699 | AB75: 2528.015445
L76: 13 | M76: 396.24 | N76: 8.863636364 | O76: 4835.526784 | P76: 4283.829441 | Q76: 3992.169949 | R76: 3802.744197 | S76: 3652.539317 | T76: 3534.471083 | U76: 3365.621753 | V76: 3231.590857 | W76: 3132.113904 | X76: 3079.287096 | Y76: 3006.934829 | Z76: 2944.195614 | AA76: 2887.825081 | AB76: 2794.038304
L77: 14 | M77: 426.72 | N77: 9.545454545 | O77: 5304.8688 | P77: 4699.623053 | Q77: 4379.654741 | R77: 4171.843099 | S77: 4007.059154 | T77: 3877.531075 | U77: 3692.293028 | V77: 3545.252932 | W77: 3436.120627 | X77: 3378.166387 | Y77: 3298.791522 | Z77: 3229.962763 | AA77: 3168.120839 | AB77: 3065.231006
L78: 15 | M78: 457.2 | N78: 10.22727273 | O78: 5782.673562 | P78: 5122.913875 | Q78: 4774.126305 | R78: 4547.597256 | S78: 4367.971368 | T78: 4226.776812 | U78: 4024.854541 | V78: 3864.570676 | W78: 3745.608922 | X78: 3682.434795 | Y78: 3595.910707 | Z78: 3520.882604 | AA78: 3453.470634 | AB78: 3341.313606
L79: 16 | M79: 487.68 | N79: 10.90909091 | O79: 6268.513726 | P79: 5553.323319 | Q79: 5175.231828 | R79: 4929.670594 | S79: 4734.953163 | T79: 4581.89593 | U79: 4363.00885 | V79: 4189.258491 | W79: 4060.301984 | X79: 3991.820186 | Y79: 3898.026645 | Z79: 3816.694941 | AA79: 3743.619251 | AB79: 3622.039178
L80: 17 | M80: 518.16 | N80: 11.59090909 | O80: 6762.009157 | P80: 5990.514623 | Q80: 5582.657476 | R80: 5317.764171 | S80: 5107.717403 | T80: 4942.610576 | U80: 4706.491377 | V80: 4519.062336 | W80: 4379.95359 | X80: 4306.08049 | Y80: 4204.902952 | Z80: 4117.168323 | AA80: 4038.339671 | AB80: 3907.188077
L81: 18 | M81: 548.64 | N81: 12.27272727 | O81: 7262.81922 | P81: 6434.186013 | Q81: 5996.122021 | R81: 5711.610105 | S81: 5486.006786 | T81: 5308.671766 | U81: 5055.065032 | V81: 4853.754561 | W81: 4704.3431 | X81: 4624.998786 | Y81: 4516.327806 | Z81: 4422.095347 | AA81: 4337.428462 | AB81: 4196.563478
L82: 19 | M82: 579.12 | N82: 12.95454545 | O82: 7770.636684 | P82: 6884.065313 | Q82: 6415.371818 | R82: 6110.966783 | S82: 5869.589245 | T82: 5679.854932 | U82: 5408.515975 | V82: 5193.129845 | W82: 5033.27151 | X82: 4948.37943 | Y82: 4832.110157 | Z82: 4731.28895 | AA82: 4640.702144 | AB82: 4489.987857
L83: 20 | M83: =L83*12*2.54 -> 609.6 | N83: =L83*60*60/5280 -> 13.63636364 | O83: =IF($C$37="***","***",(($C$36*($C$24^$C$44)*($O$52^((-1)*$C$45))*(Kinematic_Viscosity^$C$46)*($C$37^$C$47)*(M83^$C$48))*(60/(2*PI()*$C$26)))) -> 8285.182848 | P83: 7339.905618 | Q83: 6840.176771 | R83: 6515.61503 | S83: 6258.254261 | T83: 6055.956361 | U83: 5766.650226 | V83: 5537.00193 | W83: 5366.558299 | X83: 5276.044942 | Y83: 5152.076698 | Z83: 5044.57944 | AA83: 4947.994272 | AB83: 4787.300178
L84: Schedule 40 Type | O84: "1 inch" | P84: "2 inch" | Q84: "3 inch" | R84: "4 inch" | S84: "5 inch" | T84: "6 inch" | U84: "8 inch" | V84: "10 inch" | W84: "12 inch" | X84: "14 inch" | Y84: "16 inch" | Z84: "18 inch" | AA84: "20 inch" | AB84: "24 inch"
L85: Pipe ID (cm) | O85: 2.664 | P85: 5.25 | Q85: 7.792 | R85: 10.23 | S85: 12.82 | T85: 15.41 | U85: 20.27 | V85: 25.45 | W85: 30.32 | X85: 33.3502 | Y85: 38.1 | Z85: 42.8752 | AA85: 47.7774 | AB85: 57.4802
K88: =IF(AND(A1>200,A1<300),A1,"") -> 
F89: Enter your own pipe velocity in ft / s All other cells will automatically calculate | L89: Schedule 40 Type | O89: "1 inch" | P89: "2 inch" | Q89: "3 inch" | R89: "4 inch" | S89: "5 inch" | T89: "6 inch" | U89: "8 inch" | V89: "10 inch" | W89: "12 inch" | X89: "14 inch" | Y89: "16 inch" | Z89: "18 inch" | AA89: "20 inch" | AB89: "24 inch"
L90: Pipe ID (cm) | O90: 2.664 | P90: 5.25 | Q90: 7.792 | R90: 10.23 | S90: 12.82 | T90: 15.41 | U90: 20.27 | V90: 25.45 | W90: 30.32 | X90: 33.3502 | Y90: 38.1 | Z90: 42.8752 | AA90: 47.7774 | AB90: 57.4802
L91: PIPE VELOCITY
L92: (ft / s) | M92: (cm / s) | N92: (mi / hr)
M93: =IF(L93="","***",L93*12*2.54) -> *** | N93: =IF(L93="","***",M93*60*60/5280) -> *** | O93: =IF($M$93="***","***",(($C$36*($C$24^$C$44)*(O$52^((-1)*$C$45))*(Kinematic_Viscosity^$C$46)*($C$37^$C$47)*($M$93^$C$48))*(60/(2*PI()*$C$26)))) -> *** | P93: *** | Q93: *** | R93: *** | S93: *** | T93: *** | U93: *** | V93: *** | W93: *** | X93: *** | Y93: *** | Z93: *** | AA93: *** | AB93: ***
F98: Based on the settings entered and data from Table 2, enter a rotation rate and pipe ID to get an estimate of pipe velocity. | L98: REVERSE CALCULATE
L99: Pipe ID (cm)
L100: Rate (RPM)
L101: PIPE VELOCITY
L102: (ft / s) | M102: (cm / s) | N102: (mi / hr)
L103: =IF(OR(M103="***",M103=""),"***",M103/(2.54*12)) -> *** | M103: =IF(OR(N99="",N100=""),"***",((N100/((60/(2*PI()*$C$26))*$C$36*($C$24^$C$44)*($N$99^((-1)*$C$45))*(Kinematic_Viscosity^$C$46)*($C$37^$C$47)))^(1/$C$48))) -> *** | N103: =IF(OR(M103="",M103="***"),"***",M103*60*60/(2.54*12*5280)) -> ***

Sheet ANSI Steel Pipe Values
A1: SOURCE | B1: http://www.engineeringtoolbox.com/ansi-steel-pipes-d_305.html | I1: Cyl DIA
I2: 12
A3: size (in) | B3: od (in) | C3: id (in) | D3: ID (cm) | I3: 15
A4: 0.125 | B4: 0.41 | C4: 0.27 | D4: =C4*2.54 -> 0.6858
A5: 0.25 | B5: 0.54 | C5: 0.36 | D5: 0.9144
A6: 0.375 | B6: 0.68 | C6: 0.49 | D6: 1.2446
A7: 0.5 | B7: 0.84 | C7: 0.62 | D7: 1.5748
A8: 0.75 | B8: 1.05 | C8: 0.82 | D8: 2.0828
A9: 1 | B9: 1.32 | C9: 1.05 | D9: 2.667
A10: 1.25 | B10: 1.66 | C10: 1.38 | D10: 3.5052
A11: 1.5 | B11: 1.9 | C11: 1.61 | D11: 4.0894
A12: 2 | B12: 2.38 | C12: 2.07 | D12: 5.2578
A13: 2.5 | B13: 2.88 | C13: 2.47 | D13: 6.2738
A14: 3 | B14: 3.5 | C14: 3.07 | D14: 7.7978
A15: 3.5 | B15: 4 | C15: 3.55 | D15: 9.017
A16: 4 | B16: 4.5 | C16: 4.03 | D16: 10.2362
A17: 5 | B17: 5.56 | C17: 5.05 | D17: 12.827
A18: 6 | B18: 6.63 | C18: 6.07 | D18: 15.4178
A19: 8 | B19: 8.63 | C19: 7.98 | D19: 20.2692
A20: 10 | B20: 10.75 | C20: 10.02 | D20: 25.4508
A21: 12 | B21: 12.75 | C21: 11.94 | D21: 30.3276
A22: 14 | B22: 14 | C22: 13.13 | D22: 33.3502
A23: 16 | B23: 16 | C23: 15 | D23: 38.1
A24: 18 | B24: 18 | C24: 16.88 | D24: 42.8752
A25: 20 | B25: 20 | C25: 18.81 | D25: 47.7774
A26: 24 | B26: 24 | C26: 22.63 | D26: 57.4802
